fUSD/lending_fUSD_20260108
["ID","MTS","AMOUNT","RATE_DAILY","PERIOD"]
[401082787,1767911441001,-4171.04830628,0.00011753,2]
[401082789,1767911441010,-150.0,0.00011759,2]
[401082791,1767911441019,-6807.16,0.00011781,2]
[401082793,1767911441030,-151.0,0.000118,2]
[401082795,1767911441039,-150.0,0.00011802,2]
[401082797,1767911441048,-1000000.0,0.00011803,2]
[401082799,1767911441057,-1949.15,0.00011836,2]
[401082801,1767911441066,-1892.525,0.00011902,2]
[401082803,1767911441075,-184.75,0.00011902,2]
[401082805,1767911441084,-1944.48,0.0001195,2]
[401082807,1767911441093,-20444.7960315,0.00011956,2]
[401082809,1767911441102,-151.0,0.00011993,2]
[401082811,1767911441111,-151.0,0.00011993,2]
[401082813,1767911441122,-151.0,0.00011993,2]
[401082815,1767911441131,-151.0,0.00011993,2]
[401082817,1767911441141,-290.63838597,0.00011993,2]
[401082819,1767911441150,-500.0,0.00011993,2]
[401082821,1767911441159,-742.77,0.00011999,2]
[401082823,1767911441168,-195.0,0.00012101,2]
[401082825,1767911441176,-250.0,0.00012101,2]
[401082826,1767911441185,-250.0,0.00012101,2]
[401082827,1767911441194,-9948.51596607,0.00012156,2]
[401082828,1767911441203,-344.30828492,0.00012256,2]
[401082829,1767911441212,-1944.48,0.00012267,2]
[401082830,1767911441221,-742.77,0.00012273,2]
[401082831,1767911441230,-44274.7,0.00012298,2]
[401082832,1767911441239,-420.0,0.00012337,2]
[401082833,1767911441248,-1680.0,0.00012352,2]
[401082834,1767911441257,-500.0,0.00012356,2]
[401082835,1767911441266,-742.77,0.00012547,2]
[401082836,1767911441275,-20444.79603141,0.00012616,2]
[401082837,1767911441285,-176.53159944,0.00012617,2]
[401082838,1767911441294,-176.53159944,0.00012617,2]
[401082839,1767911441303,-323.67,0.00012641,2]
[401082840,1767911441313,-224.78328857,0.00012709,2]
[401082841,1767911441322,-500.0,0.00012709,2]
[401082842,1767911441331,-500.0,0.00012764,2]
[401082843,1767911441341,-9948.51596598,0.00012794,2]
[401082844,1767911441351,-500.0,0.00012819,2]
[401082846,1767911441360,-742.77,0.00012821,2]
[401082847,1767911441369,-500.0,0.00012873,2]
[401082848,1767911441378,-255.0,0.00012876,2]
[401082849,1767911441387,-171.91,0.00012882,2]
[401082850,1767911441395,-500.0,0.00012928,2]
[401082851,1767911441405,-500.0,0.00012983,2]
[401082852,1767911441414,-166.66,0.00012987,2]
[401082853,1767911441423,-500.0,0.00013038,2]
[401082854,1767911441431,-500.0,0.00013093,2]
[401082855,1767911441440,-742.77,0.00013095,2]
[401082856,1767911441449,-500.0,0.00013147,2]
[401082857,1767911441457,-250.0,0.00013183,2]
[401082858,1767911441466,-295.72412489,0.00013183,2]
[401082859,1767911441475,-168.0044133,0.00013184,2]
[401082860,1767911441484,-344.3082849,0.00013197,2]
[401082861,1767911441493,-500.0,0.00013202,2]
[401082863,1767911441502,-500.0,0.00013257,2]
[401082864,1767911441511,-893.22555293,0.00013267,2]
[401082865,1767911441520,-166.66,0.00013273,2]
[401082866,1767911441529,-20444.79603141,0.00013277,2]
[401082867,1767911441538,-500.0,0.00013312,2]
[401082868,1767911441547,-500.0,0.00013367,2]
[401082869,1767911441556,-742.81,0.00013368,2]
[401082870,1767911441565,-166.66,0.00013416,2]
[401082871,1767911441575,-500.0,0.00013421,2]
[401082872,1767911441584,-500.0,0.00013424,2]
[401082873,1767911441593,-157.03274317,0.00013424,2]
[401082874,1767911441602,-171.05172936,0.00013424,2]
[401082875,1767911441613,-9948.51596598,0.00013432,2]
[401082876,1767911441622,-500.0,0.00013457,2]
[401082877,1767911441631,-267.0,0.00013476,2]
[401082878,1767911441640,-500.0,0.00013479,2]
[401082879,1767911441649,-176.53159944,0.00013497,2]
[401082880,1767911441659,-176.53159944,0.00013497,2]
[401082881,1767911441669,-1000.0,0.00013503,2]
[401082882,1767911441678,-500.0,0.00013534,2]
[401082883,1767911441687,-166.66,0.00013553,2]
[401082884,1767911441696,-587.0,0.00013553,2]
[401082885,1767911441705,-2351.0,0.00013587,2]
[401082886,1767911441720,-150.0,0.00013588,2]
[401082887,1767911441729,-150.0,0.00013622,2]
[401082888,1767911441739,-261.10675148,0.00013698,2]
[401082889,1767911441749,-500.0,0.00013698,2]
[401082890,1767911441758,-500.0,0.00013698,2]
[401082891,1767911441769,-500.0,0.00013698,2]
[401082892,1767911441781,-500.0,0.00013698,2]
[401082893,1767911441798,-500.0,0.00013698,2]
[401082894,1767911441808,-500.0,0.00013698,2]
[401082895,1767911441819,-500.0,0.00013698,2]
[401082896,1767911441828,-500.0,0.00013698,2]
[401082897,1767911441838,-500.0,0.00013698,2]
[401082898,1767911441849,-500.0,0.00013698,2]
[401082899,1767911441862,-500.0,0.00013698,2]
[401082900,1767911441871,-500.0,0.00013698,2]
[401082901,1767911441880,-500.0,0.00013698,2]
[401082902,1767911441889,-500.0,0.00013698,2]
[401082903,1767911441898,-550.60903699,0.00013698,2]
[401082904,1767911441908,-640.29,0.00013698,2]
[401082905,1767911441928,-640.29,0.00013698,2]
[401082906,1767911441942,-640.29,0.00013698,2]
[401082907,1767911441951,-640.29,0.00013698,2]
[401082908,1767911441965,-649.16,0.00013698,2]
[401082909,1767911441977,-649.16,0.00013698,2]
[401082910,1767911441989,-649.16,0.00013698,2]
[401082911,1767911442000,-649.16,0.00013698,2]
[401082912,1767911442010,-500.0,0.00013698,2]
[401082913,1767911442021,-500.0,0.00013698,2]
[401082914,1767911442033,-478.33803571,0.00013698,2]
[401082915,1767911442042,-500.0,0.00013698,2]
[401082916,1767911442051,-500.0,0.00013698,2]
[401082917,1767911442061,-500.0,0.00013698,2]
[401082918,1767911442070,-500.0,0.00013698,2]
[401082919,1767911442079,-500.0,0.00013698,2]
[401082920,1767911442088,-500.0,0.00013698,2]
[401082921,1767911442098,-500.0,0.00013698,2]
[401082922,1767911442107,-500.0,0.00013698,2]
[401082923,1767911442117,-500.0,0.00013698,2]
[401082924,1767911442443,-500.0,0.00013698,2]
[401082925,1767911442453,-386.45682453,0.00013698,2]
[401082926,1767911442462,-510.914429,0.00013698,2]
[401082927,1767911442471,-500.0,0.00013698,2]
[401082928,1767911442480,-500.0,0.00013698,2]
[401082929,1767911442489,-500.0,0.00013698,2]
[401082930,1767911442498,-172.20960609,0.00013698,2]
[401082931,1767911442507,-500.0,0.00013698,2]
[401082932,1767911442516,-500.0,0.00013698,2]
[401082933,1767911442525,-506.98336707,0.00013698,2]
[401082934,1767911442535,-938.98,0.00013698,2]
[401082935,1767911442544,-938.98,0.00013698,2]
[401082936,1767911442553,-938.98,0.00013698,2]
[401082937,1767911442562,-938.98,0.00013698,2]
[401082938,1767911442571,-360.93,0.00013699,2]
[401082939,1767911442580,-150.99,0.00013699,2]
[401082940,1767911442590,-150.99,0.00013699,2]
[401082941,1767911442599,-3614.02,0.00013699,2]
[401082942,1767911442608,-1360.8,0.00013699,2]
[401082943,1767911442617,-1195.8,0.00013699,2]
[401082944,1767911442626,-9999.99,0.00013699,2]
[401082945,1767911442635,-1212.07,0.00013699,2]
[401082946,1767911442645,-173.71,0.00013699,2]
[401082947,1767911442654,-166.66,0.00013832,2]
[401082948,1767911442663,-166.66,0.00013844,2]
[401082949,1767911442672,-20444.79603141,0.00013937,2]
[401082950,1767911442681,-1095.68,0.00013972,2]
[401082951,1767911442690,-998.13686081,0.00014,2]
[401082952,1767911442700,-433.0,0.00014044,2]
[401082953,1767911442710,-9948.51596598,0.00014071,2]
[401082954,1767911442719,-504.0,0.00014082,2]
[401082955,1767911442729,-166.66,0.00014112,2]
[401082956,1767911442738,-344.3082849,0.00014137,2]
[401082957,1767911442749,-166.66,0.00014273,2]
[401082958,1767911442762,-176.53159944,0.00014378,2]
[401082959,1767911442787,-10300.04320394,0.0001439,2]
[401082960,1767911442811,-166.66,0.00014391,2]
[401082961,1767911442834,-576.56,0.00014504,2]
[401082962,1767911442859,-9999.99,0.00014504,2]
[401082963,1767911442883,-2502.08,0.00014504,2]
[401082964,1767911442907,-250.0,0.00014536,2]
[401082965,1767911442930,-20444.79603141,0.00014598,2]
[401082966,1767911442951,-168.0044133,0.00014632,2]
[401082967,1767911442970,-1000.0,0.00014659,2]
[401082968,1767911442982,-166.66,0.0001467,2]
[401082969,1767911442991,-1000.0,0.00014679,2]
[401082970,1767911443000,-166.66,0.00014702,2]
[401082971,1767911443009,-9948.51596598,0.00014709,2]
[401082972,1767911443019,-1000.0,0.00014732,2]
[401082973,1767911443027,-500.0,0.00014763,2]
[401082974,1767911443036,-165.71915277,0.00014763,2]
[401082975,1767911443045,-500.0,0.00014763,2]
[401082976,1767911443054,-500.0,0.00014763,2]
[401082977,1767911443076,-500.0,0.00014763,2]
[401082978,1767911443100,-500.0,0.00014763,2]
[401082979,1767911443121,-500.0,0.00014763,2]
[401082981,1767911443144,-600.1564652,0.00014763,2]
[401082982,1767911443169,-500.0,0.00014763,2]
[401082983,1767911443190,-500.0,0.00014763,2]
[401082984,1767911443213,-500.0,0.00014763,2]
[401082985,1767911443234,-500.0,0.00014763,2]
[401082986,1767911443256,-500.0,0.00014763,2]
[401082987,1767911443276,-500.76955814,0.00014763,2]
[401082988,1767911443294,-500.0,0.00014763,2]
[401082989,1767911443303,-500.0,0.00014763,2]
[401082990,1767911443312,-500.0,0.00014763,2]
[401082991,1767911443322,-394.05894311,0.00014763,2]
[401082992,1767911443331,-455.21640209,0.00014763,2]
[401082993,1767911443340,-823.0,0.0001489,2]
[401082994,1767911443350,-3292.0,0.00014946,2]
[401082995,1767911443359,-5014.92,0.00014999,2]
[401082996,1767911443369,-2045.26348643,0.00015,2]
[401082997,1767911443378,-1207.91998562,0.00015,2]
[401082998,1767911443387,-14219.31572028,0.00015,2]
[401082999,1767911443396,-344.3082849,0.00015078,2]
[401083000,1767911443405,-208.81,0.00015085,2]
[401083001,1767911443414,-1000.0,0.00015117,2]
[401083002,1767911443424,-166.66,0.00015131,2]
[401083003,1767911443433,-1000.0,0.00015141,2]
[401083004,1767911443442,-151.0,0.00015145,2]
[401083005,1767911443452,-1000.0,0.00015146,2]
[401083006,1767911443461,-1000.0,0.0001517,2]
[401083007,1767911443470,-158.0,0.00015177,2]
[401083008,1767911443479,-158.0,0.00015177,2]
[401083009,1767911443488,-152.0,0.00015177,2]
[401083010,1767911443497,-1000.0,0.00015191,2]
[401083011,1767911443507,-1000.0,0.00015197,2]
[401083012,1767911443515,-1000.0,0.00015199,2]
[401083013,1767911443525,-1000.0,0.00015202,2]
[401083014,1767911443533,-1000.0,0.00015214,2]
[401083015,1767911443542,-20444.79603141,0.00015258,2]
[401083016,1767911443551,-1000.0,0.0001531,2]
[401083017,1767911443560,-1000.0,0.0001531,2]
[401083018,1767911443569,-1000.0,0.0001531,2]
[401083019,1767911443578,-506.30341667,0.0001531,2]
[401083020,1767911443588,-1000.0,0.0001531,2]
[401083021,1767911443597,-1000.0,0.0001531,2]
[401083022,1767911443607,-1000.0,0.0001531,2]
[401083023,1767911443615,-500.0,0.0001531,2]
[401083024,1767911443624,-1000.0,0.0001531,2]
[401083025,1767911443633,-1000.0,0.0001531,2]
[401083026,1767911443643,-1000.0,0.0001531,2]
[401083027,1767911443652,-736.0,0.00015331,2]
[401083028,1767911443662,-9948.51596598,0.00015347,2]
[401083029,1767911443671,-1000.0,0.0001535,2]
[401083030,1767911443680,-1000.0,0.00015353,2]
[401083031,1767911443688,-1000.0,0.00015354,2]
[401083032,1767911443698,-507.02410886,0.000154,2]
[401083033,1767911443706,-1000.0,0.00015543,2]
[401083034,1767911443715,-209.75,0.00015593,2]
[401083035,1767911443724,-171.91,0.00015623,2]
[401083036,1767911443733,-1000.0,0.00015624,2]
[401083037,1767911443742,-1000.0,0.00015625,2]
[401083038,1767911443751,-1000.0,0.00015635,2]
[401083039,1767911443760,-1000.0,0.00015657,2]
[401083040,1767911443769,-1000.0,0.00015685,2]
[401083041,1767911443778,-1000.0,0.000157,2]
[401083042,1767911443787,-1000.0,0.00015774,2]
[401083043,1767911443796,-1000.0,0.00015797,2]
[401083044,1767911443805,-1100.0,0.00015808,2]
[401083045,1767911443814,-3000.0,0.00015808,2]
[401083046,1767911443823,-1000.0,0.00015837,2]
[401083047,1767911443832,-1500.0,0.00015858,2]
[401083048,1767911443840,-1520.5636209,0.00015858,2]
[401083049,1767911443849,-1000.0,0.00015858,2]
[401083050,1767911443860,-1000.0,0.00015858,2]
[401083051,1767911443869,-1500.0,0.00015858,2]
[401083052,1767911443878,-1500.0,0.00015858,2]
[401083053,1767911443887,-1000.0,0.00015858,2]
[401083054,1767911443896,-1500.0,0.00015858,2]
[401083055,1767911443905,-1500.0,0.00015858,2]
[401083056,1767911443914,-1000.0,0.00015901,2]
[401083057,1767911443923,-20444.79603141,0.00015919,2]
[401083058,1767911443932,-1000.0,0.00015944,2]
[401083059,1767911443941,-1000.0,0.00015972,2]
[401083060,1767911443951,-9948.51596598,0.00015985,2]
[401083061,1767911443967,-11716.16929184,0.00016,2]
[401083062,1767911443976,-250.031061,0.00016,2]
[401083063,1767911443985,-344.3082849,0.00016019,2]
[401083064,1767911443994,-993.92526434,0.00016065,2]
[401083065,1767911444004,-80755.69031789,0.000161,2]
[401083066,1767911444014,-9999.99,0.00016116,2]
[401083067,1767911444023,-1000.0,0.00016117,2]
[401083068,1767911444034,-1000.0,0.00016186,2]
[401083069,1767911444043,-5000.00799654,0.000162,5]
[401083070,1767911444052,-1000.0,0.0001625,2]
[401083071,1767911444061,-151.0,0.00016282,2]
[401083072,1767911444070,-1000.0,0.00016285,2]
[401083073,1767911444080,-200.0,0.0001634,2]
[401083074,1767911444089,-1000.0,0.00016341,2]
[401083075,1767911444098,-1152.0,0.00016359,2]
[401083076,1767911444107,-162.0,0.000164,2]
[401083077,1767911444116,-162.0,0.000164,2]
[401083078,1767911444125,-833.0,0.000164,2]
[401083079,1767911444134,-162.0,0.000164,2]
[401083080,1767911444143,-833.0,0.000164,2]
[401083081,1767911444152,-162.0,0.000164,2]
[401083082,1767911444160,-833.0,0.000164,2]
[401083083,1767911444169,-833.0,0.000164,2]
[401083085,1767911444178,-162.0,0.000164,2]
[401083087,1767911444187,-162.0,0.000164,2]
[401083089,1767911444198,-833.0,0.000164,2]
[401083090,1767911444207,-162.0,0.000164,2]
[401083091,1767911444216,-833.0,0.000164,2]
[401083092,1767911444225,-162.0,0.000164,2]
[401083093,1767911444234,-162.0,0.000164,2]
[401083094,1767911444243,-162.0,0.000164,2]
[401083095,1767911444253,-163.0,0.000164,2]
[401083097,1767911444263,-2000.0,0.00016406,2]
[401083098,1767911444271,-2000.0,0.00016406,2]
[401083099,1767911444281,-2000.0,0.00016406,2]
[401083100,1767911444290,-500.0,0.00016437,2]
[401083101,1767911444299,-500.0,0.00016437,2]
[401083102,1767911444308,-640.29,0.00016437,2]
[401083103,1767911444318,-649.16,0.00016437,2]
[401083104,1767911444327,-500.0,0.00016437,2]
[401083105,1767911444336,-500.0,0.00016437,2]
[401083106,1767911444345,-938.98,0.00016437,2]
[401083107,1767911444354,-4391.8,0.00016438,2]
[401083108,1767911444364,-150.0,0.00016438,2]
[401083109,1767911444372,-800.0,0.00016438,2]
[401083110,1767911444382,-888.0,0.00016438,2]
[401083111,1767911444392,-173.71,0.00016438,2]
[401083112,1767911444401,-4609.0,0.0001644,2]
[401083113,1767911444411,-209.75,0.00016453,2]
[401083114,1767911444420,-157.72323008,0.00016471,2]
[401083115,1767911444429,-171.91,0.00016484,2]
[401083116,1767911444438,-1000.0,0.00016486,2]
[401083117,1767911444448,-150.0,0.00016493,2]
[401083118,1767911444457,-1000.0,0.00016525,2]
[401083119,1767911444466,-1000.0,0.00016529,2]
[401083120,1767911444475,-1000.0,0.00016536,2]
[401083121,1767911444484,-150.0,0.00016548,2]
[401083122,1767911444494,-1000.0,0.00016562,2]
[401083123,1767911444503,-20444.79603141,0.00016579,2]
[401083124,1767911444512,-272.2442752,0.00016592,2]
[401083125,1767911444522,-1000.0,0.00016595,2]
[401083126,1767911444531,-150.0,0.00016602,2]
[401083127,1767911444540,-1000.0,0.00016616,2]
[401083128,1767911444548,-927.0,0.00016618,2]
[401083129,1767911444558,-9948.51596598,0.00016624,2]
[401083130,1767911444567,-1000.0,0.00016643,2]
[401083131,1767911444577,-295.08159117,0.00016657,2]
[401083132,1767911444586,-1000.0,0.00016666,2]
[401083133,1767911444596,-1000.0,0.00016685,2]
[401083134,1767911444605,-1000.0,0.00016692,2]
[401083135,1767911444615,-1000.0,0.00016696,2]
[401083136,1767911444624,-1000.0,0.00016702,2]
[401083137,1767911444633,-1000.0,0.00016706,2]
[401083138,1767911444643,-1000.0,0.00016709,2]
[401083139,1767911444653,-4391.8,0.00016712,2]
[401083140,1767911444662,-165.16,0.00016712,2]
[401083141,1767911444671,-1000.0,0.00016713,2]
[401083142,1767911444680,-833.0,0.0001672,2]
[401083143,1767911444689,-162.0,0.0001672,2]
[401083144,1767911444698,-162.0,0.0001672,2]
[401083145,1767911444707,-162.0,0.0001672,2]
[401083146,1767911444716,-833.0,0.0001672,2]
[401083147,1767911444724,-162.0,0.0001672,2]
[401083148,1767911444734,-833.0,0.0001672,2]
[401083149,1767911444743,-162.0,0.0001672,2]
[401083150,1767911444752,-162.0,0.0001672,2]
[401083151,1767911444762,-552.0,0.0001672,2]
[401083152,1767911444771,-1252.0,0.00016723,2]
[401083153,1767911444780,-1000.0,0.00016736,2]
[401083154,1767911444789,-1000.0,0.0001676,2]
[401083155,1767911444798,-1000.0,0.0001678,2]
[401083156,1767911444808,-1000.0,0.00016811,2]
[401083157,1767911444817,-1000.0,0.00016811,2]
[401083158,1767911444828,-927.0,0.00016816,2]
[401083159,1767911444836,-927.0,0.00016819,2]
[401083160,1767911444846,-1000.0,0.00016829,2]
[401083161,1767911444855,-1000.0,0.00016833,2]
[401083162,1767911444864,-1000.0,0.00016837,2]
[401083163,1767911444873,-469.50438451,0.00016864,2]
[401083164,1767911444882,-927.0,0.00016872,2]
[401083165,1767911444891,-1000.0,0.00016878,2]
[401083166,1767911444900,-1000.0,0.00016892,2]
[401083167,1767911444910,-1000.0,0.00016896,2]
[401083168,1767911444919,-1000.0,0.00016898,2]
[401083169,1767911444927,-1000.0,0.0001691,2]
[401083170,1767911444936,-221.51285843,0.00016918,2]
[401083171,1767911444946,-640.29,0.00016921,2]
[401083172,1767911444958,-1000.0,0.00016928,2]
[401083173,1767911444966,-1000.0,0.00016948,2]
[401083174,1767911444975,-2500.0,0.00016954,2]
[401083175,1767911444984,-2500.0,0.00016954,2]
[401083176,1767911444993,-2199.80942896,0.00016954,2]
[401083177,1767911445003,-1000.0,0.00016958,2]
[401083178,1767911445012,-344.3082849,0.00016959,2]
[401083179,1767911445021,-1000.0,0.00016962,2]
[401083180,1767911445032,-4391.8,0.00016986,2]
[401083181,1767911445041,-1998.22747762,0.00016989,2]
[401083182,1767911445051,-250.0,0.00017,2]
[401083183,1767911445060,-160.0,0.00017,2]
[401083184,1767911445069,-3032.44949746,0.00017,2]
[401083185,1767911445079,-288.0,0.00017037,2]
[401083186,1767911445088,-833.0,0.0001704,2]
[401083187,1767911445097,-833.0,0.0001704,2]
[401083188,1767911445106,-500.0,0.0001704,2]
[401083189,1767911445115,-162.0,0.0001704,2]
[401083190,1767911445125,-162.0,0.0001704,2]
[401083191,1767911445134,-833.0,0.0001704,2]
[401083192,1767911445143,-162.0,0.0001704,2]
[401083193,1767911445152,-833.0,0.0001704,2]
[401083194,1767911445161,-162.0,0.0001704,2]
[401083195,1767911445170,-157.72323008,0.00017059,2]
[401083196,1767911445181,-1000.0,0.00017063,2]
[401083197,1767911445190,-356.0,0.00017068,2]
[401083198,1767911445199,-7567.0,0.00017068,2]
[401083199,1767911445208,-1000.0,0.00017092,2]
[401083200,1767911445218,-3180.75325131,0.00017099,2]
[401083201,1767911445227,-649.16,0.00017099,2]
[401083202,1767911445237,-577.6208976,0.00017099,2]
[401083203,1767911445246,-938.98,0.00017099,2]
[401083204,1767911445255,-578.20924308,0.00017099,2]
[401083205,1767911445265,-500.0,0.00017099,2]
[401083206,1767911445274,-695.39793187,0.00017099,2]
[401083207,1767911445283,-553.64373807,0.00017099,2]
[401083208,1767911445292,-500.0,0.00017099,2]
[401083209,1767911445301,-151.0,0.00017099,2]
[401083210,1767911445311,-500.0,0.00017099,2]
[401083211,1767911445320,-500.0,0.00017099,2]
[401083212,1767911445331,-500.0,0.00017099,2]
[401083213,1767911445340,-500.0,0.00017099,2]
[401083214,1767911445350,-500.0,0.00017099,2]
[401083215,1767911445359,-500.0,0.00017099,2]
[401083216,1767911445368,-500.0,0.00017099,2]
[401083217,1767911445377,-500.0,0.00017099,2]
[401083218,1767911445388,-500.0,0.00017099,2]
[401083219,1767911445397,-151.0,0.00017099,2]
[401083220,1767911445407,-500.0,0.00017099,2]
[401083221,1767911445416,-500.0,0.00017099,2]
[401083222,1767911445425,-500.0,0.00017099,2]
[401083223,1767911445435,-500.0,0.00017099,2]
[401083224,1767911445444,-500.0,0.00017099,2]
[401083225,1767911445454,-500.0,0.00017099,2]
[401083226,1767911445463,-9211.34798985,0.00017099,2]
[401083227,1767911445472,-201.93286099,0.00017099,2]
[401083228,1767911445481,-500.0,0.00017099,2]
[401083229,1767911445490,-500.0,0.00017099,2]
[401083230,1767911445499,-500.0,0.00017099,2]
[401083231,1767911445508,-151.0,0.00017099,2]
[401083232,1767911445517,-500.0,0.00017099,2]
[401083233,1767911445526,-151.0,0.00017099,2]
[401083234,1767911445535,-500.0,0.00017099,2]
[401083235,1767911445544,-500.0,0.00017099,2]
[401083236,1767911445554,-500.0,0.00017099,2]
[401083237,1767911445562,-500.0,0.00017099,2]
[401083238,1767911445571,-1500.0,0.00017099,2]
[401083239,1767911445581,-500.0,0.00017099,2]
[401083240,1767911445590,-500.0,0.00017099,2]
[401083241,1767911445599,-1500.0,0.00017099,2]
[401083242,1767911445609,-322.6107,0.00017099,2]
[401083243,1767911445618,-500.0,0.00017099,2]
[401083244,1767911445627,-500.0,0.00017099,2]
[401083245,1767911445636,-1500.0,0.00017099,2]
[401083246,1767911445645,-500.0,0.00017099,2]
[401083247,1767911445654,-500.0,0.00017099,2]
[401083248,1767911445663,-1500.0,0.00017099,2]
[401083249,1767911445671,-500.0,0.00017099,2]
[401083250,1767911445680,-500.0,0.00017099,2]
[401083251,1767911445689,-1500.0,0.00017099,2]
[401083252,1767911445698,-500.0,0.00017099,2]
[401083253,1767911445707,-260.34840278,0.00017099,2]
[401083254,1767911445716,-1500.0,0.00017099,2]
[401083255,1767911445725,-500.0,0.00017099,2]
[401083256,1767911445735,-1500.0,0.00017099,2]
[401083257,1767911445744,-250.0,0.00017099,2]
[401083258,1767911445752,-1500.0,0.00017099,2]
[401083259,1767911445761,-250.0,0.00017099,2]
[401083260,1767911445770,-1500.0,0.00017099,2]
[401083261,1767911445779,-2000.0,0.00017099,2]
[401083262,1767911445788,-250.0,0.00017099,2]
[401083263,1767911445797,-1500.0,0.00017099,2]
[401083264,1767911445806,-2000.0,0.00017099,2]
[401083265,1767911445815,-250.0,0.00017099,2]
[401083266,1767911445824,-1500.0,0.00017099,2]
[401083267,1767911445833,-2000.0,0.00017099,2]
[401083268,1767911445842,-250.0,0.00017099,2]
[401083269,1767911445851,-2000.0,0.00017099,2]
[401083270,1767911445860,-1500.0,0.00017099,2]
[401083271,1767911445869,-394.3952879,0.00017099,2]
[401083272,1767911445878,-2000.0,0.00017099,2]
[401083273,1767911445887,-2000.0,0.00017099,2]
[401083274,1767911445896,-2000.0,0.00017099,2]
[401083275,1767911445905,-2000.0,0.00017099,2]
[401083276,1767911445914,-2000.0,0.00017099,2]
[401083277,1767911445923,-2000.0,0.00017099,2]
[401083278,1767911445932,-2000.0,0.00017099,2]
[401083279,1767911445941,-2000.0,0.00017099,2]
[401083280,1767911445950,-250.0,0.00017099,2]
[401083281,1767911445962,-500.0,0.00017099,2]
[401083282,1767911445971,-250.0,0.00017099,2]
[401083283,1767911445979,-500.0,0.00017099,2]
[401083284,1767911445988,-250.0,0.00017099,2]
[401083285,1767911445998,-500.0,0.00017099,2]
[401083286,1767911446007,-250.0,0.00017099,2]
[401083287,1767911446016,-500.0,0.00017099,2]
[401083288,1767911446025,-250.0,0.00017099,2]
[401083289,1767911446036,-500.0,0.00017099,2]
[401083290,1767911446045,-250.0,0.00017099,2]
[401083291,1767911446054,-500.0,0.00017099,2]
[401083292,1767911446063,-250.0,0.00017099,2]
[401083293,1767911446072,-500.0,0.00017099,2]
[401083294,1767911446081,-250.0,0.00017099,2]
[401083295,1767911446090,-500.0,0.00017099,2]
[401083296,1767911446099,-250.0,0.00017099,2]
[401083297,1767911446107,-500.0,0.00017099,2]
[401083298,1767911446117,-250.0,0.00017099,2]
[401083299,1767911446125,-500.0,0.00017099,2]
[401083300,1767911446134,-500.0,0.00017099,2]
[401083301,1767911446143,-250.0,0.00017099,2]
[401083302,1767911446153,-500.0,0.00017099,2]
[401083303,1767911446162,-500.0,0.00017099,2]
[401083304,1767911446171,-250.0,0.00017099,2]
[401083305,1767911446180,-500.0,0.00017099,2]
[401083306,1767911446189,-500.0,0.00017099,2]
[401083307,1767911446199,-500.0,0.00017099,2]
[401083308,1767911446207,-500.0,0.00017099,2]
[401083309,1767911446216,-500.0,0.00017099,2]
[401083310,1767911446225,-500.0,0.00017099,2]
[401083311,1767911446234,-620.0,0.00017099,2]
[401083312,1767911446243,-500.0,0.00017099,2]